Cogmind - Beta 15 @@@ ROGUE MODE // 2025.06.08 @ 10:08:56 Player: Wyvric Result: Destroyed by G-67 Veteran with Plasma Rifle Performance ------------- Evolutions (6) 3000 Regions Visited (21) 4200 Robots Destroyed (327) 1635 Value Destroyed (14806) 14806 Prototype IDs (243) 4860 Alien Tech Used (0) 0 Bonus (12481) 12481 TOTAL SCORE: 40982 Bonus ------- High Alert Combat Kills 1530 Follower Combat Kills 1522 Entered Garrisons 600 Used RIF Installer 2500 Network Hubs Disabled 800 Aligned with FarCom 300 Met Data Miner 300 Used Data Conduit 3000 Built Enhanced Grunts 300 A7 Reached Mainframe 300 Met R17 at Cetus 500 Pursued by Intercept 1000 Friendly Fire -171 Cogmind --------- Core Integrity 0/1150 Matter 300/300 Energy 45/100 System Corruption 12% Temperature Cool (20) Movement Core (50) Location -4/Factory Parts ------- > --- POWER (3) -------- (None) > --- PROPULSION (4) --- (None) > --- UTILITY (8) ------ (None) > --- WEAPON (4) ------- (None) > --- INVENTORY (5) ---- Huge Storage Unit Linked Autogun Peak State ------------ > --- POWER ------------ Reinforced Deuterium Engine Quantum Reactor Quantum Reactor > --- PROPULSION ------- Centrium Heavy Treads Centrium Heavy Treads > --- UTILITY ---------- Experimental Heat Sink Huge Storage Unit 0b10 Alert Chip Experimental Targeting Computer Core Analyzer Experimental Phase Shifter Centrium Medium Armor Plating Advanced Shield Generator > --- WEAPON ----------- EMDS EMDS > --- INVENTORY -------- Quantum Reactor Centrium Heavy Treads Advanced Heat Sink Experimental Sensor Array Improved Transmission Jammer Experimental Phase Shifter Cloak of Protection Improved Utility Shielding Experimental EM Shield Improved Shield Generator System Mapper Long-range Tractor Beam Supersonic Drone Bay Force Rifle Advanced Variable Charge Gun Heavy Plasma Cannon Heavy Plasma Cannon Advanced Plasma Cannon Nova Cannon Linked Autogun Improved Remote Datajack [Rating: 163] Favorites ----------- Power Improved Ion Engine Engine Improved Ion Engine Power Core Light Nuclear Core Reactor Quantum Reactor Propulsion Light Treads Treads Light Treads Wheel Armored Wheel Utility Huge Storage Unit Device Advanced Heat Sink Storage Huge Storage Unit Processor Core Analyzer Hackware Hacking Suite Protection Layered Medium Armor Plating Weapon Heavy Missile Launcher Energy Gun Gatling Laser Energy Cannon Phase Cannon Ballistic Gun Gauss Rifle Ballistic Cannon Hardcell Cannon Launcher Heavy Missile Launcher Special Weapon Improved Remote Datajack Slashing Weapon Scythe Build | -11 -10 -10 -10 -9 -8 -8 -8 -8 -7 -7 -7 -7 -6 -6 -6 -5 -5 -5 -5 -5 -4 ------- Run | Yrd Mat Min Exi Min Mat Gar Mat Gar Fac Low Low Dat Pro Fac Gar Fac Ext Cet Arc Hub Fac Slots Evolved 12 | . . . . . 4 . . . 2 . . . . 2 . 2 . . . . 2 Power 2 | . . . . . . . . . . . . . . 1 . . . . . . 1 Propulsion 2 | . . . . . . . . . 2 . . . . . . . . . . . . Utility 6 | . . . . . 3 . . . . . . . . . . 2 . . . . 1 Weapon 2 | . . . . . 1 . . . . . . . . 1 . . . . . . . Parts Attached 222 | 6 5 4 1 6 6 11 19 25 14 7 3 6 3 7 31 14 14 5 8 11 16 Power 24 | 1 . . . 1 . . 2 3 . 1 . . . 1 7 1 2 1 . 1 3 Engine 13 | 1 . . . 1 . . 1 2 . 1 . . . 1 2 1 2 1 . . . Core 4 | . . . . . . . 1 1 . . . . . . 1 . . . . . 1 Reactor 7 | . . . . . . . . . . . . . . . 4 . . . . 1 2 Propulsion 46 | 2 1 . . 2 . 1 5 8 2 . 1 . 1 1 10 4 3 3 . 1 1 Treads 36 | 2 1 . . 1 . 1 5 4 2 . 1 . 1 1 8 4 1 2 . 1 1 Leg . | . . . . . . . . . . . . . . . . . . . . . . Wheel 10 | . . . . 1 . . . 4 . . . . . . 2 . 2 1 . . . Hover . | . . . . . . . . . . . . . . . . . . . . . . Flight . | . . . . . . . . . . . . . . . . . . . . . . Utility 81 | 1 1 2 1 2 5 3 7 6 10 1 2 2 . . 9 5 4 1 4 7 8 Device 45 | . . 1 . 2 2 2 2 4 6 1 . 2 . . 9 2 2 . 2 4 4 Storage 6 | 1 1 1 1 . . . 2 . . . . . . . . . . . . . . Processor 10 | . . . . . 1 1 1 . 2 . . . . . . 2 . . . 1 2 Hackware 8 | . . . . . 1 . 1 1 1 . . . . . . . . . 1 1 2 Protection 12 | . . . . . 1 . 1 1 1 . 2 . . . . 1 2 1 1 1 . Artifact . | . . . . . . . . . . . . . . . . . . . . . . Weapon 71 | 2 3 2 . 1 1 7 5 8 2 5 . 4 2 5 5 4 5 . 4 2 4 Energy Gun 23 | 1 . . . 1 . 1 5 5 . 1 . . 1 1 1 1 . . 4 1 . Energy Cannon 15 | . . . . . . . . . 1 . . . . 4 4 2 2 . . 1 1 Ballistic Gun 18 | 1 2 1 . . . 5 . 3 . . . 2 1 . . 1 1 . . . 1 Ballistic Cannon 2 | . . . . . . . . . . . . . . . . . . . . . 2 Launcher 10 | . 1 1 . . 1 1 . . 1 4 . 1 . . . . . . . . . Special Weapon 2 | . . . . . . . . . . . . . . . . . 2 . . . . Impact Weapon . | . . . . . . . . . . . . . . . . . . . . . . Slashing Weapon 1 | . . . . . . . . . . . . 1 . . . . . . . . . Piercing Weapon . | . . . . . . . . . . . . . . . . . . . . . . Special Melee Weapon . | . . . . . . . . . . . . . . . . . . . . . . Unidentified Prototypes 8 | . . 1 . 1 . . 2 . . . . . . . . 1 . . 1 2 . Corrupted Parts 1 | . . . . . . . . . . . . . . . . . . 1 . . . System Corruption 7 | . . . . . . . . . . . . . . . . . . 7 . . . Parts Lost 77 | . . 1 . 2 . 4 5 14 . 1 . 4 2 2 14 1 5 . . 2 20 Power 12 | . . . . 1 . . 2 1 . 1 . . . . 1 1 1 . . . 4 Propulsion 21 | . . . . 1 . 1 2 5 . . . . 1 1 7 . . . . 1 2 Utility 26 | . . . . . . 2 1 3 . . . 2 1 1 2 . 2 . . . 12 Weapon 18 | . . 1 . . . 1 . 5 . . . 2 . . 4 . 2 . . 1 2 Highest Loss Streak 20 | . . 1 . 2 . 1 2 4 . 1 . 4 2 1 11 1 3 . . 1 20 To Critical Strikes . | . . . . . . . . . . . . . . . . . . . . . . Average Backups 20 | 3 8 11 13 15 15 18 21 22 23 24 24 22 23 23 23 23 22 21 21 21 21 Power 1 | . 1 . 1 . . . . 1 1 . 1 1 1 . 2 2 1 1 2 2 1 Propulsion 2 | 1 4 3 3 2 2 4 6 3 . . . 1 . . 2 3 2 2 2 1 1 Utility 10 | . 1 2 5 7 8 8 10 11 12 13 12 10 12 11 9 10 11 11 11 10 10 Weapon 7 | . 2 4 4 5 5 4 3 5 9 10 10 10 9 11 9 7 5 4 5 5 7 Tool/Special . | . . . . . . . . . . . . . . . . . . . . . . Unused Backups 45 | . 1 2 . 1 1 . 6 2 4 1 2 . . 2 5 3 3 3 . 1 8 Power 2 | . . . . . . . . . 1 . . . . . . . . . . . 1 Propulsion 13 | . 1 2 . . . . 2 1 . . 1 . . . 1 . . 2 . . 3 Utility 16 | . . . . . 1 . . 1 3 1 1 . . . 1 1 2 1 . 1 3 Weapon 14 | . . . . 1 . . 4 . . . . . . 2 3 2 1 . . . 1 Tool/Special . | . . . . . . . . . . . . . . . . . . . . . . Average Slot Usage (%) 92 | . 85 85 85 93 92 97 97 95 96 91 93 97 93 98 97 96 93 88 85 87 83 Engine 8 | . 14 14 14 13 9 9 7 8 . 4 7 7 7 12 9 5 6 11 11 8 4 Reactor 1 | . . . . . . . . . . . . . . . 3 4 3 . . 2 9 Treads 21 | . 28 28 28 25 17 8 17 13 27 30 29 30 29 25 16 14 12 3 11 11 9 Wheel 1 | . . . . 1 . 8 . 3 . . . . . . 7 7 5 7 . . . Device 13 | . . . . 8 23 16 11 18 18 14 12 11 16 20 24 24 16 17 12 13 14 Storage 8 | . 14 14 14 14 9 9 9 9 7 7 7 7 7 6 6 5 5 5 5 5 4 Processor 4 | . . . . . 4 6 7 . . 7 7 3 . . . 4 11 11 11 14 18 Hackware 2 | . . . . . . 9 14 12 4 . . . . . . . . . 1 1 1 Protection 2 | . . . . . . 2 1 3 5 . 3 11 7 6 1 1 5 5 5 3 1 Energy Gun 9 | . 1 . . 10 8 10 25 23 . 11 . . 12 21 7 12 10 . 19 18 . Energy Cannon 2 | . . . . . . . . . 3 . . . . 4 16 9 9 23 1 4 14 Ballistic Gun 5 | . 19 20 14 14 18 15 1 1 18 3 . 8 . . 1 . 1 . . . . Launcher 5 | . 6 7 14 3 . 1 . . . 7 22 12 9 . . . . . . . . Peak Build Rating 163 | 6 7 19 10 23 26 30 34 41 57 61 61 60 64 64 91 106 101 125 131 141 163 Average Rating 55 | 5 6 7 8 13 23 26 32 35 48 56 57 52 54 61 73 85 90 107 125 130 147 On Entrance 52 | . 6 7 8 10 16 26 30 34 41 54 55 53 59 52 60 70 96 93 124 123 133 Naked Turns . | . . . . . . . . . . . . . . . . . . . . . . Heaviest Build 190 | 11 18 48 47 52 61 62 93 103 114 130 130 130 130 146 164 171 173 160 160 171 190 Greatest Support 160 | 40 40 40 40 40 40 40 40 40 88 88 88 88 88 88 88 116 106 160 160 160 160 Greatest Overweight (x) 9 | . . 1 1 3 1 3 3 9 1 1 1 1 1 2 6 6 5 5 . 1 1 Average Overweight (x) 1 | . . . 1 1 1 2 1 2 1 1 1 1 1 1 4 3 1 1 . . 1 Largest Inventory Capacity 25 | 8 10 20 20 20 20 20 25 25 25 25 25 25 25 25 25 25 25 25 25 25 25 Average Capacity 22 | 7 9 19 20 20 20 20 22 25 25 25 25 25 25 25 25 25 25 25 25 25 24 Most Carried 25 | 5 10 13 18 20 20 20 25 25 25 25 25 25 25 25 25 25 25 25 25 25 25 Average Carried 21 | 3 8 12 14 17 17 19 22 23 24 24 24 22 24 24 24 24 24 24 24 24 24 Final Capacity 25 | 8 10 20 20 20 20 20 25 25 25 25 25 25 25 25 25 25 25 25 25 25 5 Final Carried 25 | 5 10 12 18 18 20 20 25 25 25 25 25 24 24 25 25 25 25 25 25 24 3 Class Distribution -------------------- 26% | Scavenger-Bomber 20% | Scavenger-Gunner 18% | Mutant 16% | Scavenger-Skirmisher 7% | Scavenger-Tank 3% | Commander-Tank Dominant Class ---------------- Mutant | -10/Materials Mutant | -10/Mines Mutant | -10/Exiles Mutant | -9/Mines Skirmisher | -8/Materials Scavenger-Skirmisher | -8/Garrison Scavenger-Skirmisher | -8/Materials Scavenger-Skirmisher | -8/Garrison Scavenger-Tank | -7/Factory Scavenger-Gunner | -7/Lower Caves Scavenger-Gunner | -7/Lower Caves Scavenger-Bomber | -7/Data Miner Scavenger-Bomber | -6/Proximity Caves Scavenger-Bomber | -6/Factory Scavenger-Bomber | -6/Garrison Scavenger-Bomber | -5/Factory Scavenger-Bomber | -5/Extension Scavenger-Tank | -5/Cetus Commander-Tank | -5/Archives Scavenger-Tank | -5/Hub_04(d) Scavenger-Tank | -4/Factory Resources | -11 -10 -10 -10 -9 -8 -8 -8 -8 -7 -7 -7 -7 -6 -6 -6 -5 -5 -5 -5 -5 -4 ----------- Run | Yrd Mat Min Exi Min Mat Gar Mat Gar Fac Low Low Dat Pro Fac Gar Fac Ext Cet Arc Hub Fac Matter Collected 6786 | 192 370 227 . 72 61 504 280 594 234 401 284 90 443 165 460 243 346 96 164 326 1234 Remotely 794 | . . . . . . . . . . . . . . . . . . . . . 794 Salvage Created 15676 | 67 421 284 . 88 205 597 1336 1325 310 611 210 184 421 366 1562 1284 1396 365 258 1314 3072 Parts 673 | 5 39 18 . 2 9 33 66 72 18 24 6 5 15 8 66 42 39 14 16 60 116 Haulers Intercepted 12 | . 2 . . . 1 . 3 . . . . . . . . . 2 . . . 4 Recyclers Shooed 6 | . 1 . . . . . . . 1 . . . . 1 . 1 1 . . . 1 Parts Field Recycled . | . . . . . . . . . . . . . . . . . . . . . . Retrieved Matter . | . . . . . . . . . . . . . . . . . . . . . . Parts Self-Destructed 41 | . . . . . . . . . . 20 6 . 15 . . . . . . . . Prevented . | . . . . . . . . . . . . . . . . . . . . . . Kills | -11 -10 -10 -10 -9 -8 -8 -8 -8 -7 -7 -7 -7 -6 -6 -6 -5 -5 -5 -5 -5 -4 ------- Run | Yrd Mat Min Exi Min Mat Gar Mat Gar Fac Low Low Dat Pro Fac Gar Fac Ext Cet Arc Hub Fac Combat Hostiles Destroyed 254 | . 15 9 . 3 2 14 18 34 4 13 8 4 8 7 28 10 16 5 1 20 35 Melee 1 | . . . . . . . . . . . . . . . . . . . . 1 . Guns 123 | . 1 2 . 1 . 10 18 22 3 12 1 1 6 5 10 7 6 . . 17 1 Cannons 58 | . . . . . . . . . 1 . . . . . 13 1 8 5 1 1 28 AOE 55 | . 14 7 . 2 2 4 . 12 . 1 7 3 . . 3 . . . . . . Classes Destroyed 21 | 1 4 3 . . 1 3 1 1 . 2 . . . . 2 . . . 1 2 . Worker 15 | . . . . . 1 . 5 . . . . . . . . 1 . . . . 8 Builder 10 | . . 1 . . . . . . 2 . . . . . . 1 1 . . 1 4 Tunneler 7 | 3 1 3 . . . . . . . . . . . . . . . . . . . Hauler 12 | . 2 . . . 1 . 3 . . . . . . . . . 2 . . . 4 Recycler 13 | . . 1 . . 1 . 2 . . . . . . . . 5 2 . . . 2 Mechanic 1 | . . . . . . . 1 . . . . . . . . . . . . . . Operator 5 | . . . . . . . . . . . . . . . . . . . 5 . . Watcher 7 | . 1 . . . . . 1 1 . . . . . . . 1 1 . . 1 1 Swarmer 46 | . 6 . . 2 . . 4 7 . 5 4 . . 1 7 . 6 . . . 4 Saboteur 2 | . . . . . . . . . . . . . . . . . . . . 1 1 Grunt 93 | . 9 9 . . 2 6 5 17 . 3 3 . 3 3 7 2 2 . . 7 15 Brawler 6 | . . . . . . . . . . 2 . . . . 1 1 . . . 2 . Duelist 6 | . . . . . . . . . . 2 1 . . . 2 . . . . 1 . Protector 2 | . . . . . . . . . . . . . . . . . . . . 2 . Sentry 37 | . . . . . . 2 7 5 1 2 . . . 3 7 2 6 . 1 1 . Demolisher 2 | . . . . . . . . . . . . . . . 1 . . . . 1 . Specialist 8 | . . . . . . 2 2 . 2 . . . 2 . . . . . . . . Hunter 13 | . . . . . . 4 . 2 1 . . . 1 . 1 . . . . . 4 Programmer 20 | . . . . . . . . 3 1 . . . 2 . . 3 . . . 2 9 Behemoth 4 | . . . . . . . . . . . . . . . 2 . 2 . . . . Cetus Guard 5 | . . . . . . . . . . . . . . . . . . 5 . . . Enhanced Grunt 4 | . . . . . . . . . . . . 4 . . . . . . . . . Lightning 3 | . . . . . . . . . . . . . . . . . . . . 3 . Tracker 2 | . . . . . . . . . . . . . . . . 1 . . . . 1 Combat Programmer 2 | . . . . . . . . . . . . . . . . 1 . . . . 1 Decomposer 2 | . . . . . . . . . . 2 . . . . . . . . . . . Assembled 1 | . . 1 . . . . . . . . . . . . . . . . . . . Best Kill Streak 32 | 2 4 8 . 2 5 3 3 8 3 9 4 4 3 3 4 7 8 3 2 10 32 Combat Bots Only 10 | . 3 4 . 2 2 3 3 8 2 9 4 4 3 3 8 3 6 3 1 10 9 Max Kills in Single Turn 5 | 1 2 4 . 2 3 2 2 3 1 2 4 1 1 1 3 2 1 1 1 2 5 Gunslinging 1 | . . . . . . . 1 . . 1 . . . . 1 1 . . . 1 . Exploded 4 | . 2 2 . 2 2 2 . 3 . 1 4 1 . . 3 . . . . . . Melee 1 | . . . . . . . . . . . . . . . . . . . . 1 . Uniques/NPCs Destroyed 2 | . . . . 1 . . . . . . . 1 . . . . . . . . . YI-UF0 (-9/Mines) Data Miner (-7/Data Miner) Combat | -11 -10 -10 -10 -9 -8 -8 -8 -8 -7 -7 -7 -7 -6 -6 -6 -5 -5 -5 -5 -5 -4 -------- Run | Yrd Mat Min Exi Min Mat Gar Mat Gar Fac Low Low Dat Pro Fac Gar Fac Ext Cet Arc Hub Fac Hostile Shots Fired 1568 | . 29 31 . 5 6 86 78 131 32 41 13 23 46 65 339 46 85 11 . 117 384 Missed 413 | . 11 7 . . 1 20 21 29 14 13 5 7 14 24 108 6 23 1 . 25 84 Hits 1155 | . 18 24 . 5 5 66 57 102 18 28 8 16 32 41 231 40 62 10 . 92 300 Melee 26 | . . . . . . . . . . . . . . 1 3 1 . . . 3 18 Projectile 1129 | . 18 24 . 5 5 66 57 102 18 28 8 16 32 40 228 39 62 10 . 89 282 AOE 7 | . . . . 6 . . . . . . . . . . . . . . . 1 . Critical Strikes 48 | . . 1 . . . 2 2 4 . 2 . . 3 1 5 1 . 1 . 7 19 Part Disruptions 8 | . . . . . . . . 1 . . . . 2 . . 1 . . . 3 1 Damage Taken 18936 | . 252 351 . 171 78 967 823 1533 279 539 144 790 529 472 2676 625 788 183 47 2436 5253 Core 2677 | . 41 86 . 91 . 91 193 193 13 42 29 13 152 16 303 56 74 12 . 103 1169 Absorbed by Shields 2036 | . . . . . . . . 13 . . . . . . 465 439 379 78 . 184 478 Reduced by Siege Mode 449 | . . . . . . . . . . . . . . . . 20 . . . 103 326 Ignored by Resistances 998 | . . . . . . . . . . . . . . . . . . . . 74 924 Core Remaining (%) 54 | 100 . . . 12 . . . 13 . . . . 64 . 62 . . . . 75 . Volleys Fired 624 | 10 37 23 . 5 8 50 62 60 17 20 4 10 19 12 51 38 35 9 15 53 86 Largest 4 | 2 2 2 . 2 3 3 3 3 3 3 3 3 3 4 4 4 4 4 4 4 4 Hottest 391 | 70 70 40 . 75 95 161 183 183 84 190 117 117 215 300 345 353 386 363 391 391 391 Shots Fired 1728 | 20 52 36 . 9 20 123 186 163 43 56 8 27 55 48 187 121 124 36 48 161 205 Gun 1116 | 20 30 26 . 8 18 119 186 155 39 52 2 15 54 40 52 56 46 . 36 146 16 Cannon 528 | . . . . . . . . . 3 . . . . 8 134 65 76 36 8 13 185 Launcher 72 | . 22 10 . 1 2 4 . 8 1 4 6 12 1 . 1 . . . . . . Special 12 | . . . . . . . . . . . . . . . . . 2 . 4 2 4 Kinetic 249 | 10 25 26 . 4 12 68 6 . 39 7 . 15 . . 14 3 2 . . . 18 Thermal 1313 | 10 5 . . . . 47 180 138 . 45 2 . 54 48 172 118 120 36 44 158 136 Explosive 71 | . 22 10 . 1 2 4 . 8 1 4 6 12 . . 1 . . . . . . Electromagnetic 83 | . . . . 4 6 4 . 17 3 . . . 1 . . . . . . 1 47 Robot Hit Streak 38 | 3 7 9 . 2 6 18 14 14 12 18 4 10 18 21 19 14 22 14 17 38 15 Robot Miss Streak 6 | 3 4 4 . 1 1 6 4 4 2 4 1 2 3 2 4 5 6 1 2 2 3 Penetration Max 1 | . . . . . . . . . . . . . . . . . . . . . 1 Secondary Targets 33 | . . 1 . . 1 1 2 4 1 6 . . . 2 3 3 . . . 9 . Max Gunslinging Chain 2 | . . 1 . . 1 1 1 1 1 1 . . . 1 1 2 . . . 1 . Shots Hit Robots 1113 | 10 26 21 . 4 11 74 103 105 29 39 4 21 42 38 141 61 75 30 30 122 127 Core Hits 659 | 4 31 27 . 5 7 31 42 60 12 33 10 20 26 17 66 49 46 15 14 62 82 Critical Kills 4 | . 1 . . . . . . . . . . . . . 1 2 . . . . . Critical Parts Destroyed 3 | . . . . . . 1 . . 1 . . . . . . . . . . . 1 Critical Strikes 33 | . 1 . . . . 4 8 7 1 1 . . . 2 1 2 . . . . 6 Burn 20 | . . . . . . 3 8 6 . 1 . . . 2 . . . . . . . Meltdown 3 | . . . . . . . . . . . . . . . 1 2 . . . . . Destroy 4 | . 1 . . . . 1 . . 1 . . . . . . . . . . . 1 Corrupt 6 | . . . . . . . . 1 . . . . . . . . . . . . 5 Melee Attacks 9 | . . . . . . . . . . . . 8 1 . . . . . . . . Impact . | . . . . . . . . . . . . . . . . . . . . . . Slashing 9 | . . . . . . . . . . . . 8 1 . . . . . . . . Piercing . | . . . . . . . . . . . . . . . . . . . . . . Sneak Attacks 1 | . . . . . . . . . . . . 1 . . . . . . . . . Combat Hostiles . | . . . . . . . . . . . . . . . . . . . . . . Follow-up Attacks . | . . . . . . . . . . . . . . . . . . . . . . Damage Inflicted 38215 | 98 1021 1141 . 174 329 1388 2223 3251 825 890 675 1478 1121 1020 4906 1923 2768 1035 958 4254 6737 Guns 17339 | 98 173 122 . 47 115 1072 2212 2108 623 817 22 252 1121 783 1018 1158 739 . 811 3753 295 Cannons 13664 | . . . . . . . . . 88 . . . . 202 3616 747 2018 1035 147 198 5613 Explosions 6970 | . 839 1019 . 127 214 316 . 1143 108 73 653 1165 . . 272 . . . . 257 784 Melee 61 | . . . . . . . . . . . . 61 . . . . . . . . . Ramming 181 | . 9 . . . . . 11 . 6 . . . . 35 . 18 11 . . 46 45 Kinetic 2694 | 49 135 122 . 35 76 640 60 . 623 36 . 252 . . 179 47 33 . . . 407 Thermal 26272 | 49 38 . . . . 417 2152 1901 91 781 22 . 1121 985 4455 1858 2724 1035 958 3902 3783 Explosive 5781 | . 839 1019 . 127 214 316 . 1086 17 73 653 1165 . . 272 . . . . . . Electromagnetic 3226 | . . . . 12 39 15 . 264 88 . . . . . . . . . . 306 2502 Impact . | . . . . . . . . . . . . . . . . . . . . . . Slashing 61 | . . . . . . . . . . . . 61 . . . . . . . . . Piercing . | . . . . . . . . . . . . . . . . . . . . . . Highest Corruption 11 | . . . . . . . 1 4 . . . . 5 . . 3 3 10 10 11 9 Average Corruption 3 | . . . . . . . 1 3 . . . . 3 . . 2 3 4 5 10 2 Corruption Purged 10 | . . . . . . . . . . . . . . . . . . . 10 . . Corruption Blocked . | . . . . . . . . . . . . . . . . . . . . . . Effects 151 | . . . . . . . 10 40 . . . . 38 . . 10 19 6 7 8 13 Message Errors 38 | . . . . . . . 3 10 . . . . 10 . . 1 6 2 2 2 2 Matter Fused 41 | . . . . . . . 2 12 . . . . 13 . . 3 3 1 2 2 3 Heat Flow Errors 16 | . . . . . . . 1 7 . . . . 3 . . . 3 . . 1 1 Energy Discharges 21 | . . . . . . . 1 4 . . . . 6 . . 4 2 1 1 1 1 Parts Rejected 2 | . . . . . . . . . . . . . . . . . . . 1 1 . Parts Fused 2 | . . . . . . . . . . . . . 1 . . . . . . . 1 Data Loss (minor) 18 | . . . . . . . 3 2 . . . . 1 . . 2 3 2 1 1 3 Data Loss (major) 4 | . . . . . . . . 3 . . . . . . . . 1 . . . . Misfires 4 | . . . . . . . . 1 . . . . 2 . . . . . . . 1 Alerts 2 | . . . . . . . . 1 . . . . 1 . . . . . . . . Weapon Failures 3 | . . . . . . . . . . . . . 1 . . . 1 . . . 1 Overload Shots 5 | . . . . . . . . . . . . . . . . . . . . 5 . Effects 1 | . . . . . . . . . . . . . . . . . . . . 1 . Heat Surge 1 | . . . . . . . . . . . . . . . . . . . . 1 . Overflow Damage 565 | . 3 1 . . 32 . . 49 . . . 37 . 5 19 39 73 . . . 307 Projectiles 249 | . . . . . . . . . . . . . . . . 39 73 . . . 137 Explosions 303 | . 3 1 . . 32 . . 49 . . . 37 . . 19 . . . . . 162 Melee 13 | . . . . . . . . . . . . . . 5 . . . . . . 8 Knockbacks 1 | . . . . . . . . . . . . . . . . . . . . . 1 Impact . | . . . . . . . . . . . . . . . . . . . . . . Kinetic 1 | . . . . . . . . . . . . . . . . . . . . . 1 Secondary . | . . . . . . . . . . . . . . . . . . . . . . Self-Inflicted Damage 573 | . 63 47 . 3 . 3 . 82 85 6 23 80 16 . . 9 . . . 24 132 Shots 21 | . 2 2 . 1 . 1 . 3 2 1 2 2 1 . . . . . . 1 3 Rammed 17 | . 1 . . . . . 1 . 1 . . . . 2 . 1 1 . . 6 4 Targets Rammed 19 | . 1 1 . . . . 1 . 1 . . . . 2 . 1 1 . . 7 4 Kicked . | . . . . . . . . . . . . . . . . . . . . . . Crushed 2 | . . 1 . . . . . . . . . . . . . . . . . 1 . Highest Temperature 474 | 80 90 40 . 10 24 99 288 374 . 144 48 . 259 380 451 263 346 198 188 314 474 Average Temperature 118 | 36 33 13 . 9 12 33 91 139 . 48 18 . 80 181 156 94 137 130 77 130 146 Received Heat Transfer 4101 | . 75 183 . . 18 171 288 531 36 108 18 . 81 168 935 16 89 . . 435 949 Effects 24 | . . . . . . . 1 1 . . . . . 3 4 . . . . 1 14 Shutdowns 5 | . . . . . . . . . . . . . . 1 . . . . . . 4 Energy Bleed 4 | . . . . . . . 1 . . . . . . . . . . . . 1 2 Interference 10 | . . . . . . . . . . . . . . 1 3 . . . . . 6 Matter Decay 2 | . . . . . . . . 1 . . . . . 1 . . . . . . . Short Circuit 2 | . . . . . . . . . . . . . . . 1 . . . . . 1 Damage (minor) 1 | . . . . . . . . . . . . . . . . . . . . . 1 Siege Activations 4 | . . . . . . . . . . . . . . . . 2 . . . 1 1 Total Turns 130 | . . . . . . . . . . . . . . . . 12 . . . 69 49 Longest Duration 69 | . . . . . . . . . . . . . . . . 9 . . . 69 49 Martial Activations . | . . . . . . . . . . . . . . . . . . . . . . Shielding Activations . | . . . . . . . . . . . . . . . . . . . . . . Robots Disrupted . | . . . . . . . . . . . . . . . . . . . . . . Combat Hostiles . | . . . . . . . . . . . . . . . . . . . . . . Robots Corrupted 9 | . . . . . . . . . . . . . . . . . . . . 1 8 Combat Hostiles 7 | . . . . . . . . . . . . . . . . . . . . 1 6 Parts Fried 30 | . . . . . . . . . . . . . . . . . . . . 6 24 Impact Corruptions 2 | . . . . . . . . . . . . . . 1 . . . . . . 1 Robots Melted 12 | . . . . . . . . . . . . . 2 2 3 3 2 . . . . Combat Hostiles 10 | . . . . . . . . . . . . . 2 2 2 2 2 . . . . Parts Melted 96 | . . . . . . 1 9 10 . 4 1 . 5 5 11 11 14 4 2 6 13 Heat Transferred 38747 | 148 111 . . . . 1295 4514 3824 100 1675 37 . 2121 1873 5637 3052 3835 1409 1112 3731 4273 Parts Sabotaged 2 | . . . . . . . . . . . . . . . . . . . . 2 . Parts Stolen . | . . . . . . . . . . . . . . . . . . . . . . Parts Stripped . | . . . . . . . . . . . . . . . . . . . . . . Power Chain Reactions 3 | . . . . . . . . 1 1 . . . . . . . . . . . 1 Alert | -11 -10 -10 -10 -9 -8 -8 -8 -8 -7 -7 -7 -7 -6 -6 -6 -5 -5 -5 -5 -5 -4 ------- Run | Yrd Mat Min Exi Min Mat Gar Mat Gar Fac Low Low Dat Pro Fac Gar Fac Ext Cet Arc Hub Fac Maximum Alert Level 4 | . . . . . . 1 . 4 2 . . . . . 2 1 1 1 1 4 3 Low Security (%) 58 | 100 100 100 . 100 100 50 100 14 . . . . . 100 40 26 64 4 68 28 23 Level 1 19 | . . . . . . 49 . 8 27 . . . . . 32 73 35 95 31 10 3 Level 2 13 | . . . . . . . . 18 72 . . . . . 26 . . . . 12 67 Level 3 6 | . . . . . . . . 46 . . . . . . . . . . . 36 5 Level 4 1 | . . . . . . . . 11 . . . . . . . . . . . 12 . Level 5 . | . . . . . . . . . . . . . . . . . . . . . . High Security . | . . . . . . . . . . . . . . . . . . . . . . Max Security . | . . . . . . . . . . . . . . . . . . . . . . Peak Influence 1406 | 5 193 118 . 87 68 393 191 1250 655 . . . . 72 582 335 367 357 293 1406 864 Initial 684 | . . 40 . . . 24 191 80 655 . . . . . 22 305 106 180 114 . 684 Average 251 | . 87 24 . 9 15 209 70 685 481 . . . . 25 277 229 155 281 134 637 503 Influence Increases 10251 | 15 600 270 . 87 78 409 656 1330 201 271 195 20 180 173 700 375 742 367 265 2100 1217 Destroy 0b10 Robot/C 5684 | . 300 160 . 60 40 280 360 840 100 260 160 20 160 140 560 200 440 160 80 800 564 Destroy 0b10 Robot/NC 376 | 15 20 25 . . 15 . 60 5 10 . . . . . 10 40 40 10 25 25 76 Destroy Leader 822 | . 66 20 . 10 2 20 128 30 40 10 20 . 20 30 50 72 42 . . 154 108 Allied During Kill 1099 | . . 11 . 8 . . . 53 15 1 . . . . . . 100 170 105 636 . Successful Hack 208 | . 33 7 . . . 26 12 17 21 . . . . . . . 36 9 . 35 12 Select Force Hacks 60 | . 60 . . . . . . . . . . . . . . . . . . . . Disable Machine 483 | . . . . . . . 60 15 . . . . . . . . 15 . 45 165 183 Anti-Garrison Action 420 | . . . . . . . . 250 . . . . . . 50 . . . . . 120 Destroy Structure 805 | . 121 47 . 9 21 53 6 45 15 . . . . 3 15 48 24 18 10 240 130 Partial Spotted 30 | . . . . . . . . 15 . . . . . . . 15 . . . . . Lose Combat Pursuer 264 | . . . . . . 30 30 60 . . 15 . . . 15 . 45 . . 45 24 Influence Decreases 9506 | 15 494 373 3 87 40 54 925 204 1061 661 136 79 180 141 150 739 638 402 552 702 1870 Entered New Map 2556 | . . 66 3 . . 14 202 44 595 145 . 59 . . 10 277 112 142 173 . 714 Time Decay 5136 | 15 494 297 . 87 40 . 549 . 446 506 136 20 170 121 . 452 456 180 359 302 506 Lost Part 700 | . . 10 . . . 40 50 140 . 10 . . 10 20 140 10 50 . . 20 200 Lost Ally 390 | . . . . . . . . 20 20 . . . . . . . 20 80 20 230 . Purge Threat 724 | . . . . . . . 124 . . . . . . . . . . . . 150 450 Squads Dispatched 41 | . 3 . . 1 1 . 2 . 3 . . . . 4 . 4 . . . 10 13 Investigation 5 | . 2 . . 1 . . . . . . . . . 1 . . . . . . 1 Extermination 8 | . . . . . . . . . 1 . . . . 1 . 2 . . . 1 3 Reinforcement 13 | . 1 . . . . . 2 . 2 . . . . . . . . . . 4 4 Assault 7 | . . . . . . . . . . . . . . . . . . . . 4 3 Garrison 4 | . . . . . 1 . . . . . . . . 2 . . . . . 1 . Intercept 4 | . . . . . . . . . . . . . . . . 2 . . . . 2 Searches Triggered . | . . . . . . . . . . . . . . . . . . . . . . Construction Impeded 5 | . . . . . . . 1 . 1 . . . . . . . . . . 1 2 Haulers Reinforced 2 | . . . . . . . . . 1 . . . . . . . . . . . 1 Active Scanning Responses . | . . . . . . . . . . . . . . . . . . . . . . Cargo Convoy Interrupts . | . . . . . . . . . . . . . . . . . . . . . . Stealth | -11 -10 -10 -10 -9 -8 -8 -8 -8 -7 -7 -7 -7 -6 -6 -6 -5 -5 -5 -5 -5 -4 --------- Run | Yrd Mat Min Exi Min Mat Gar Mat Gar Fac Low Low Dat Pro Fac Gar Fac Ext Cet Arc Hub Fac Distress Signals 17 | . 2 . . . 1 . 6 . . . . . . . . 2 . 2 . 1 3 Communications Jammed 7 | . . . . . . . . . . . . . . . . . . . . . 7 Distress Signals 6 | . . . . . . . . . . . . . . . . . . . . . 6 Times Spotted 369 | . 26 9 . 2 8 13 31 36 6 13 8 4 8 9 28 17 31 11 2 49 58 Peak Tracking Total 15 | . 5 4 . 1 4 3 5 7 2 9 4 3 3 3 6 3 11 5 2 11 15 Tactical Retreats 14 | . . . . . . 2 2 2 . . 1 . . . 1 . 2 . . 2 2 Traps | -11 -10 -10 -10 -9 -8 -8 -8 -8 -7 -7 -7 -7 -6 -6 -6 -5 -5 -5 -5 -5 -4 ------- Run | Yrd Mat Min Exi Min Mat Gar Mat Gar Fac Low Low Dat Pro Fac Gar Fac Ext Cet Arc Hub Fac Traps Triggered 23 | . . . . . . 6 2 5 5 . . . . . 2 2 1 . . . . Indirectly . | . . . . . . . . . . . . . . . . . . . . . . Trap Hack Attempts . | . . . . . . . . . . . . . . . . . . . . . . Triggered . | . . . . . . . . . . . . . . . . . . . . . . Disarmed . | . . . . . . . . . . . . . . . . . . . . . . Reprogrammed . | . . . . . . . . . . . . . . . . . . . . . . Reused . | . . . . . . . . . . . . . . . . . . . . . . Traps Extracted . | . . . . . . . . . . . . . . . . . . . . . . Installed . | . . . . . . . . . . . . . . . . . . . . . . Triggered . | . . . . . . . . . . . . . . . . . . . . . . Machines | -11 -10 -10 -10 -9 -8 -8 -8 -8 -7 -7 -7 -7 -6 -6 -6 -5 -5 -5 -5 -5 -4 ---------- Run | Yrd Mat Min Exi Min Mat Gar Mat Gar Fac Low Low Dat Pro Fac Gar Fac Ext Cet Arc Hub Fac Machines Disabled 42 | . . . . . . . 4 2 . . . . 1 . 2 . 3 . 3 11 16 Max in Single Turn 8 | . . . . . . . 2 1 . . . . 1 . 1 . 1 . 1 8 4 Garrison Access 3 | . . . . . . . . . . . . . . . . 1 . . . 1 1 Garrison Relay 3 | . . . . . . 1 . 1 . . . . . . 1 . . . . . . Network Hub 4 | . . . . . . . . . . . . . . . . . . . . 4 . Machines Repaired . | . . . . . . . . . . . . . . . . . . . . . . Machines Dismantled 1 | . . . . . . . . . . . . . . . . . 1 . . . . Machines Sabotaged . | . . . . . . . . . . . . . . . . . . . . . . Overloaded Fab Kills . | . . . . . . . . . . . . . . . . . . . . . . Hacking | -11 -10 -10 -10 -9 -8 -8 -8 -8 -7 -7 -7 -7 -6 -6 -6 -5 -5 -5 -5 -5 -4 --------- Run | Yrd Mat Min Exi Min Mat Gar Mat Gar Fac Low Low Dat Pro Fac Gar Fac Ext Cet Arc Hub Fac Machines Accessed 66 | . 9 2 2 1 1 3 7 3 3 1 2 4 . 3 1 2 11 1 . 5 5 Terminals 39 | . 7 1 . . . 3 5 3 1 . 1 . . . 1 . 10 1 . 4 2 Fabricators 3 | . . . . . . . . . 1 . . . . 1 . . . . . . 1 Repair Stations 1 | . . . . . . . . . . . . . . 1 . . . . . . . Recycling Units 4 | . 2 . . . . . . . 1 . . . . . . . 1 . . . . Scanalyzers 2 | . . . . . . . 1 . . . . . . . . 1 . . . . . Garrison Access 7 | . . . . . 1 . 1 . . . . . . 1 . 1 . . . 1 2 Total Hacks 185 | . 30 3 24 1 1 3 24 4 4 1 2 29 . 5 2 4 21 1 . 13 13 Successful 137 | . 20 3 24 1 1 2 16 2 3 1 2 29 . 2 . 3 8 1 . 10 9 Failed 47 | . 9 . . . . 1 8 2 1 . . . . 3 2 1 13 . . 3 4 Catastrophic 6 | . 1 . . . . . . . . . . . . 1 . . 3 . . . 1 Database Lockouts 1 | . 1 . . . . . . . . . . . . . . . . . . . . Manual 71 | . 24 2 1 . . . 21 . . . . . 1 . . . 9 1 . 9 3 Terminals 99 | . 27 2 . . . 3 21 4 1 . 1 . . . 2 . 17 1 . 12 8 Fabricators 8 | . . . . . . . . . 2 . . . . 3 . . . . . . 3 Repair Stations 1 | . . . . . . . . . . . . . . 1 . . . . . . . Recycling Units 8 | . 3 . . . . . . . 1 . . . . . . . 4 . . . . Scanalyzers 4 | . . . . . . . 2 . . . . . . . . 2 . . . . . Garrison Access 8 | . . . . . 1 . 1 . . . . . . 1 . 2 . . . 1 2 Terminal Hacks 90 | . 9 3 24 1 . 2 2 2 1 1 2 29 . . . . 6 1 . 4 3 Record 35 | . . . 23 . . . . . . . 1 11 . . . . . . . . . Part Schematic 11 | . 1 1 . . . . . . . . . 8 . . . . 1 . . . . Robot Schematic 9 | . . 1 . . . . . . . . . 7 . . . . 1 . . . . Robot Analysis 2 | . 1 . . . . . 1 . . . . . . . . . . . . . . Prototype ID Bank 6 | . 3 . . . . . . . . . . 3 . . . . . . . . . Open Door 10 | . . 1 . 1 . . . 1 . 1 1 . . . . . 4 1 . . . Level Access Points 1 | . . . . . . . . . . . . . . . . . . . . 1 . Branch Access Points 1 | . . . . . . . . . 1 . . . . . . . . . . . . Emergency Access Points 1 | . . . . . . 1 . . . . . . . . . . . . . . . Terminal Index 1 | . 1 . . . . . . . . . . . . . . . . . . . . Alert Level 1 | . 1 . . . . . . . . . . . . . . . . . . . . Unreport Threat 5 | . . . . . . . 1 . . . . . . . . . . . . 1 3 Locate Traps 1 | . 1 . . . . . . . . . . . . . . . . . . . . Hauler Manifests 1 | . 1 . . . . . . . . . . . . . . . . . . . . Zone Layout 2 | . . . . . . . . . . . . . . . . . . . . 2 . Patrol Navigation 1 | . . . . . . . . 1 . . . . . . . . . . . . . Security Stations 1 | . . . . . . 1 . . . . . . . . . . . . . . . Proto ID Catalog 1 | . . . 1 . . . . . . . . . . . . . . . . . . Fabricator Hacks 4 | . . . . . . . . . 1 . . . . 1 . . . . . . 2 Load Schematic 2 | . . . . . . . . . . . . . . 1 . . . . . . 1 Build 2 | . . . . . . . . . 1 . . . . . . . . . . . 1 Repair Station Hacks . | . . . . . . . . . . . . . . . . . . . . . . Recycling Unit Hacks 2 | . . . . . . . . . 1 . . . . . . . 1 . . . . Retrieve Components 2 | . . . . . . . . . 1 . . . . . . . 1 . . . . Scanalyzer 3 | . . . . . . . 2 . . . . . . . . 1 . . . . . Insert Component 2 | . . . . . . . 1 . . . . . . . . 1 . . . . . Analyze 1 | . . . . . . . 1 . . . . . . . . . . . . . . Garrison Access Hacks 8 | . . . . . 1 . 1 . . . . . . 1 . 2 . . . 1 2 Unlock Access 6 | . . . . . 1 . 1 . . . . . . 1 . . . . . 1 2 Seal Access 1 | . . . . . . . . . . . . . . . . 1 . . . . . Coupler Status 1 | . . . . . . . . . . . . . . . . 1 . . . . . Unauthorized Hacks 29 | . 11 . . . . . 10 . . . . . . . . . 1 . . 5 2 Terminals 27 | . 9 . . . . . 10 . . . . . . . . . 1 . . 5 2 Track 5 | . . . . . . . . . . . . . . . . . 1 . . 3 1 Botnet 11 | . 4 . . . . . 5 . . . . . . . . . . . . 2 . Disrupt 1 | . . . . . . . . . . . . . . . . . . . . . 1 Skim 10 | . 5 . . . . . 5 . . . . . . . . . . . . . . Fabricators . | . . . . . . . . . . . . . . . . . . . . . . Repair Stations . | . . . . . . . . . . . . . . . . . . . . . . Recycling Units 2 | . 2 . . . . . . . . . . . . . . . . . . . . Tunnel 2 | . 2 . . . . . . . . . . . . . . . . . . . . Scanalyzers . | . . . . . . . . . . . . . . . . . . . . . . Garrison Access . | . . . . . . . . . . . . . . . . . . . . . . Data Cores Recovered . | . . . . . . . . . . . . . . . . . . . . . . Used . | . . . . . . . . . . . . . . . . . . . . . . Hacking Detections 40 | . 6 1 . . . 2 5 3 2 . 1 . . 3 1 . 7 2 . 5 2 Full Trace Events 2 | . . . . . . . . . . . . . . 1 . . . . . . 1 Feedback Events . | . . . . . . . . . . . . . . . . . . . . . . Feedback Blocked . | . . . . . . . . . . . . . . . . . . . . . . Robot Schematics Acquired 9 | . . 1 . . . . . . . . . 7 . . . . 1 . . . . Robots Built . | . . . . . . . . . . . . . . . . . . . . . . Authchips . | . . . . . . . . . . . . . . . . . . . . . . Time . | . . . . . . . . . . . . . . . . . . . . . . Total Robot Build Rating . | . . . . . . . . . . . . . . . . . . . . . . Part Schematics Acquired 12 | . 1 1 . . . . 1 . . . . 8 . . . . 1 . . . . Parts Built 2 | . . . . . . . . . 2 . . . . . . . . . . . . Authchips . | . . . . . . . . . . . . . . . . . . . . . . Time 118 | . . . . . . . . . 42 . . . . . . . . . . . 76 Total Part Build Rating 8 | . . . . . . . . . 8 . . . . . . . . . . . . Parts Repaired . | . . . . . . . . . . . . . . . . . . . . . . Time . | . . . . . . . . . . . . . . . . . . . . . . Parts Recycled . | . . . . . . . . . . . . . . . . . . . . . . Recycled Matter . | . . . . . . . . . . . . . . . . . . . . . . Retrieved Matter . | . . . . . . . . . . . . . . . . . . . . . . Retrieved Components 10 | . . . . . . . . . 9 . . . . . . . 1 . . . . Parts Scanalyzed 1 | . . . . . . . 1 . . . . . . . . . . . . . . Part Schematics Acquired 1 | . . . . . . . 1 . . . . . . . . . . . . . . Parts Damaged . | . . . . . . . . . . . . . . . . . . . . . . Bothacking | -11 -10 -10 -10 -9 -8 -8 -8 -8 -7 -7 -7 -7 -6 -6 -6 -5 -5 -5 -5 -5 -4 ------------ Run | Yrd Mat Min Exi Min Mat Gar Mat Gar Fac Low Low Dat Pro Fac Gar Fac Ext Cet Arc Hub Fac Used RIF Installer 5 | . . . . . . 2 . 2 . . . . . . 1 . . . . . . Coupler Efficiency 1 | . . . . . . 1 . . . . . . . . . . . . . . . Signal Jammer 1 | . . . . . . . . 1 . . . . . . . . . . . . . Structural Interface 1 | . . . . . . . . . . . . . . . 1 . . . . . . Autooverride 1 | . . . . . . . . 1 . . . . . . . . . . . . . Robots Hacked 11 | . . . . . . . . . . . . . . . . . 2 . 4 1 4 Non-combat 10 | . . . . . . . . . . . . . . . . . 2 . 4 . 4 Combat 1 | . . . . . . . . . . . . . . . . . . . . 1 . Robot Hacks Applied 11 | . . . . . . . . . . . . . . . . . 2 . 4 1 4 no_distress 6 | . . . . . . . . . . . . . . . . . 2 . . . 4 formatsys_low 4 | . . . . . . . . . . . . . . . . . . . 4 . . formatsys_high 1 | . . . . . . . . . . . . . . . . . . . . 1 . Relay Couplers Released 15 | . . . . . . 3 . 4 . . . . . . 5 . . . . 1 2 Machine Destruction 15 | . . . . . . 3 . 4 . . . . . . 5 . . . . 1 2 Attached 3 | . . . . . . . . 1 . . . . . . . . . . 1 1 . Fabnet Peak Effective % . | . . . . . . . . . . . . . . . . . . . . . . Robots Rewired 14 | . . . . . . . . 4 . 2 . . . . . . 8 . . . . Allies Hacked . | . . . . . . . . . . . . . . . . . . . . . . Hacks Repelled . | . . . . . . . . . . . . . . . . . . . . . . Allies | -11 -10 -10 -10 -9 -8 -8 -8 -8 -7 -7 -7 -7 -6 -6 -6 -5 -5 -5 -5 -5 -4 -------- Run | Yrd Mat Min Exi Min Mat Gar Mat Gar Fac Low Low Dat Pro Fac Gar Fac Ext Cet Arc Hub Fac Total Allies 34 | . . 3 . . . . . 4 . 2 . . . . . . 15 5 4 1 . Largest Group 17 | . . 3 2 2 . . . 4 3 2 . . . . . . 14 15 17 17 . Highest-Rated Group 947 | . . 40 32 32 . . . 160 120 36 . . . . . . 525 893 893 947 . Highest-Rated Ally 159 | . . 16 16 16 . . . 40 40 20 . . . . . . 159 159 159 142 . Total Orders 18 | . . . . . . . . 2 4 2 . . . . . . . . 2 4 4 STAY 7 | . . . . . . . . 1 . 1 . . . . . . . . 1 4 . FOLLOW 3 | . . . . . . . . 1 . 1 . . . . . . . . 1 . . EXPLORE 4 | . . . . . . . . . 2 . . . . . . . . . . . 2 RETURN 4 | . . . . . . . . . 2 . . . . . . . . . . . 2 Ally Attacks 232 | . . 2 . 5 . . . 23 9 5 . . . . . . 45 38 27 78 . Total Damage 6190 | . . 24 . 62 . . . 578 197 46 . . . . . . 886 848 989 2560 . Kills 51 | . . . . 1 . . . 8 1 . . . . . . . 8 5 3 25 . Allies Corrupted 6 | . . . . . . . . . . . . . . . . . . . . 6 . Allies Melted 1 | . . . . . . . . . . . 1 . . . . . . . . . . Intel | -11 -10 -10 -10 -9 -8 -8 -8 -8 -7 -7 -7 -7 -6 -6 -6 -5 -5 -5 -5 -5 -4 ------- Run | Yrd Mat Min Exi Min Mat Gar Mat Gar Fac Low Low Dat Pro Fac Gar Fac Ext Cet Arc Hub Fac Active Infowar (turns) 9129 | . . . . 516 251 . 84 . 113 2642 2390 . 1623 365 96 363 . . . 144 542 Optics 223 | . . . . . 139 . 84 . . . . . . . . . . . . . . Sensors 4053 | . . . . 1 . . . . . 1416 1867 . 223 . . 50 . . . 50 446 Structural 3570 | . . . . . . . . . 14 1226 523 . 1400 365 42 . . . . . . Seismic 762 | . . . . 515 193 . . . . . . . . . 54 . . . . . . Jamming 652 | . . . . . . . . . 99 . . . . . . 363 . . . 94 96 Robot Analysis Total 153 | . 1 . . . . . 1 . . . . 151 . . . . . . . . . Derelict Logs Recovered 8 | . . 1 . 3 . . . . . 1 2 . 1 . . . . . . . . Drone Launches 4 | . . . . . . . . . 2 . . . . . . . . . . . 2 Drone Recoveries 4 | . . . . . . . . . 2 . . . . . . . . . . . 2 Exploration | -11 -10 -10 -10 -9 -8 -8 -8 -8 -7 -7 -7 -7 -6 -6 -6 -5 -5 -5 -5 -5 -4 ------------- Run | Yrd Mat Min Exi Min Mat Gar Mat Gar Fac Low Low Dat Pro Fac Gar Fac Ext Cet Arc Hub Fac Turns Passed 27787 | 152 1516 1528 1116 861 277 981 2072 1802 1116 2935 3201 454 2508 365 970 1120 1465 366 943 666 1373 Spaces Moved 10565 | 71 654 613 462 365 96 514 578 552 372 1159 1295 155 981 113 343 427 655 189 322 246 403 Core 2 | 2 . . . . . . . . . . . . . . . . . . . . . Treads 8758 | 69 654 613 462 286 96 4 569 370 372 1159 1295 155 981 113 100 151 286 52 322 246 403 Legs . | . . . . . . . . . . . . . . . . . . . . . . Wheels 1805 | . . . . 79 . 510 9 182 . . . . . . 243 276 369 137 . . . Hover . | . . . . . . . . . . . . . . . . . . . . . . Flight . | . . . . . . . . . . . . . . . . . . . . . . Fastest Speed 50 | 50 160 160 240 145 240 145 145 135 242 242 242 245 245 245 165 165 130 130 160 160 240 Average Speed 220 | 156 160 236 240 219 240 145 278 262 242 242 242 245 245 245 191 202 178 141 160 173 240 Slowest Speed 480 | 160 160 240 240 320 240 320 320 480 243 242 245 245 245 326 323 400 240 240 160 240 240 Overloaded Moves . | . . . . . . . . . . . . . . . . . . . . . . Propulsion Burnouts . | . . . . . . . . . . . . . . . . . . . . . . Robots Hopped . | . . . . . . . . . . . . . . . . . . . . . . Potential Cave-ins . | . . . . . . . . . . . . . . . . . . . . . . Cave-ins Triggered . | . . . . . . . . . . . . . . . . . . . . . . Exploration Rate (%) 58 | 5 97 98 72 73 11 70 53 69 35 89 86 81 72 4 38 12 83 75 95 43 18 Regions Visited 21 Branch Regions 11 Pre-discovered Areas 31 | . 4 . 1 . . . 1 . . 1 . 24 . . . . . . . . . Known Exits Taken 8 | . . . . . 1 . 1 . 1 1 . . 1 1 . 1 . . . 1 . Unknown Exits Taken 10 | 1 1 1 1 1 . . . . . . 1 1 . . . . 1 1 1 . . Scrap Searched 12 | . . 1 . 1 . . . . . 4 5 . 1 . . . . . . . . Spaces Dug 92 | . 14 . . 9 . . . 4 12 18 . . . . . 15 . . 4 8 8 Terrain Destroyed 794 | . 150 67 . 9 27 35 . 40 19 46 71 21 . 2 5 29 12 2 9 186 64 Melee . | . . . . . . . . . . . . . . . . . . . . . . Projectile 109 | . . . . . . 2 . 3 . 1 . . . 2 . 29 12 2 9 21 28 AOE 685 | . 150 67 . 9 27 33 . 37 19 45 71 21 . . 5 . . . . 165 36 Terrain Rammed . | . . . . . . . . . . . . . . . . . . . . . . Walls Destroyed . | . . . . . . . . . . . . . . . . . . . . . . Machines Disabled . | . . . . . . . . . . . . . . . . . . . . . . Actions | -11 -10 -10 -10 -9 -8 -8 -8 -8 -7 -7 -7 -7 -6 -6 -6 -5 -5 -5 -5 -5 -4 --------- Run | Yrd Mat Min Exi Min Mat Gar Mat Gar Fac Low Low Dat Pro Fac Gar Fac Ext Cet Arc Hub Fac Total 13670 | 91 1075 661 470 414 126 648 903 782 553 1236 1350 193 1028 165 533 585 853 270 718 367 649 Wait 1414 | . 366 1 2 29 2 24 202 49 103 7 12 . 9 11 24 63 52 39 367 13 39 Move 10544 | 70 653 612 461 364 96 513 578 550 371 1158 1294 154 980 112 341 426 654 188 321 245 403 Hop . | . . . . . . . . . . . . . . . . . . . . . . Pick Up 222 | 5 7 12 5 5 7 4 17 21 11 4 9 5 2 11 35 10 10 12 . 11 19 Fast Attach 92 | 6 1 2 1 1 4 8 11 8 9 . 3 2 . 1 12 5 5 2 4 3 4 Attach 96 | . . 2 . 3 1 1 3 17 2 1 2 3 3 3 13 3 5 3 1 8 22 Detach 20 | . . 1 . . . . . 1 2 . . 1 . . . 2 . . 1 . 12 Swap 243 | . 6 3 . 4 4 8 8 13 9 19 14 6 14 6 21 23 16 3 6 20 40 Drop 216 | . 4 4 1 3 4 8 21 17 18 3 12 4 . 7 36 14 16 14 3 7 20 Fire 624 | 10 37 23 . 5 8 50 62 60 17 20 4 10 19 12 51 38 35 9 15 53 86 Melee 9 | . . . . . . . . . . . . 8 1 . . . . . . . . Ram 4 | . . . . . . . . . . . . . . . . 1 . . . . 3 Kick . | . . . . . . . . . . . . . . . . . . . . . . Crush 15 | . 1 1 . . . . 1 . 1 . . . . 2 . . 1 . . 7 1 Escape Stasis 62 | . . . . . . 32 . 20 10 . . . . . . . . . . . . Rewire 101 | . . . . . . . . 26 . 24 . . . . . . 51 . . . . Trap . | . . . . . . . . . . . . . . . . . . . . . . Miscellaneous 8 | . . . . . . . . . . . . . . . . . 8 . . . . Route ------- -11/Scrapyard -10/Materials (discovered 5 exits: *Mat x3 / *Min / [*Sub]) -10/Mines (discovered 3 exits: *Mat x2 / *Exi) -10/Exiles -9/Mines -8/Materials -8/Garrison (discovered 3 exits: *Mat x3) -8/Materials (discovered 3 exits: Fac x2 / Gar) -8/Garrison (discovered 2 exits: *Fac x2) -7/Factory (discovered 5 exits: *Fac / Sto x2 / *Low x2) -7/Lower Caves -7/Lower Caves (discovered 2 exits: *Fac / *Dat) -7/Data Miner -6/Proximity Caves -6/Factory -6/Garrison -5/Factory (discovered 2 exits: *Ext x2) -5/Extension (discovered 3 exits: *Fac x2 / *Cet) -5/Cetus (discovered 2 exits: *Fac / [*Arc]) -5/Archives (discovered 3 exits: *Fac / *Hub x2) -5/Hub_04(d) (discovered 4 exits: *Fac x4) -4/Factory (discovered 2 exits: [*Res] / Gar) History --------- Turn | Location | Event 6 | -11/Scrapyard | Discovered new exit (range 15) 153 | -11/Scrapyard | Entered Materials 302 | -10/Materials | Build established: Mutant 510 | -10/Materials | Discovered new exit (range 9) 663 | -10/Materials | Discovered new exit (range 6) 847 | -10/Materials | Central database locked down 991 | -10/Materials | Learned 2 Mines zone layouts 1111 | -10/Materials | Learned Storage terminal intel 1158 | -10/Materials | Identified exit to Materials 1195 | -10/Materials | Learned 4 Recycling zone layouts 1223 | -10/Materials | Learned location of Mines (-9) 1261 | -10/Materials | Learned location of 1 exit from Recycling 1308 | -10/Materials | Learned 2 Mines zone layouts 1457 | -10/Materials | Discovered new exit (range 14) 1669 | -10/Materials | Entered Mines 1678 | -10/Mines | Found the Drone Emporium 1686 | -10/Mines | Found Prototype Device 1707 | -10/Mines | Met a Derelict bent on vengeance 2197 | -10/Mines | Assisted by bots powering up and referring to "LRC-V3" 2291 | -10/Mines | Discovered exit to Materials (range 9) 2329 | -10/Mines | Deemed a non-threat by the Exiles lab entrance 2332 | -10/Mines | Discovered new exit (range 5) 2517 | -10/Mines | Identified Decoy Drone Bay 2644 | -10/Mines | Excavation squad dispatched 2644 | -10/Mines | A large section of the Mines collapsed 2659 | -10/Mines | Core integrity fell below 50% 3197 | -10/Mines | Entered Exiles 3197 | -10/Exiles | Accompanied by 2 allies 3257 | -10/Exiles | Met 8R-AWN 3301 | -10/Exiles | Met EX-HEX 3397 | -10/Exiles | Met EX-DEC 3409 | -10/Exiles | Learned location of Zion (-6) 3811 | -10/Exiles | Discovered new exit (range 11) 3955 | -10/Exiles | Met EX-BIN 3991 | -10/Exiles | Aligned with FarCom system 3993 | -10/Exiles | Given EX-Vault access code 4049 | -10/Exiles | Opened EX-Vault 4063 | -10/Exiles | Found 0b10 Alert Chip 4066 | -10/Exiles | Found Supersonic Drone Bay 4077 | -10/Exiles | Found Cloak of Protection 4126 | -10/Exiles | Warned to stay clear of 0b10 Research branches 4149 | -10/Exiles | Exiles lab attacked by MAIN.C 4313 | -10/Exiles | Stole three prototypes: 0b10 Alert Chip, Cloak of Protection, Supersonic Drone Bay 4313 | -10/Exiles | Entered Mines 4313 | -9/Mines | Accompanied by 2 allies 4487 | -9/Mines | YI-UF0 nonchalantly dropped a Grenade Launcher on the ground 4504 | -9/Mines | Met a Derelict shopkeep closing up shop 4626 | -9/Mines | Core integrity fell below 20% 4628 | -9/Mines | Destroyed YI-UF0 4658 | -9/Mines | Lost 3 allies 4702 | -9/Mines | Discovered new exit (range 10) 4796 | -9/Mines | Learned Materials terminal intel 4837 | -9/Mines | Learned Materials stockpile data 4846 | -9/Mines | Learned location of 1 exit from Lower Caves 4959 | -9/Mines | Found a damaged Exp. Sensor Array with a note attached 4964 | -9/Mines | Found Prototype Device 5052 | -9/Mines | Assembled infested the area 5057 | -9/Mines | Assisted by a Guerilla fighting off Assembled 5171 | -9/Mines | Identified Exp. Sensor Array 5174 | -9/Mines | Entered Materials 5174 | -8/Materials | Evolved 4 slots: Utility x3, Weapon x1 5176 | -8/Materials | Loaded intel: 12 terminal locations 5364 | -8/Materials | Garrison activated, responded to threat 5451 | -8/Materials | Identified exit to Garrison 5451 | -8/Materials | Entered Garrison 5480 | -8/Garrison | Build established: Skirmisher 5624 | -8/Garrison | Installed Relay Interface Framework 5824 | -8/Garrison | Learned Materials security intel 5830 | -8/Garrison | Discovered new exit (range 12) 5881 | -8/Garrison | Triggered checkpoint 6031 | -8/Garrison | Build established: Scavenger-Skirmisher 6100 | -8/Garrison | Expanded RIF knowledge: Coupler Efficiency 6147 | -8/Garrison | Triggered checkpoint 6242 | -8/Garrison | Discovered new exit (range 10) 6301 | -8/Garrison | Triggered checkpoint 6418 | -8/Garrison | Discovered new exit (range 10) 6432 | -8/Garrison | Entered Materials 7257 | -8/Materials | Learned Factory interactive machine intel 7293 | -8/Materials | Identified exit to Factory 7318 | -8/Materials | Learned Storage stockpile data 7342 | -8/Materials | Learned Storage security intel 7350 | -8/Materials | Learned location of 1 exit from Extension 7398 | -8/Materials | Learned Storage garrison access intel 8318 | -8/Materials | Core integrity fell below 50% 8504 | -8/Materials | Identified exit to Garrison 8504 | -8/Materials | Entered Garrison 8708 | -8/Garrison | Triggered checkpoint 8820 | -8/Garrison | Triggered checkpoint 8826 | -8/Garrison | Triggered checkpoint 8865 | -8/Garrison | Destroyed 7 combat bots 8926 | -8/Garrison | Triggered checkpoint 8953 | -8/Garrison | Destroyed 8 combat bots 8970 | -8/Garrison | Triggered checkpoint 9036 | -8/Garrison | Discovered exit to Factory (range 12) 9040 | -8/Garrison | Triggered checkpoint 9138 | -8/Garrison | Triggered checkpoint 9197 | -8/Garrison | Lost 4 parts (1p2n1u) 9230 | -8/Garrison | Triggered checkpoint 9245 | -8/Garrison | Core integrity fell below 20% 9281 | -8/Garrison | Lost 4 parts (1n1u2w) 9773 | -8/Garrison | Discovered exit to Factory (range 12) 9864 | -8/Garrison | Triggered checkpoint 9991 | -8/Garrison | Expanded RIF knowledge: Autooverride 10086 | -8/Garrison | Expanded RIF knowledge: Signal Jamming 10139 | -8/Garrison | Garrison Relay disabled 10306 | -8/Garrison | Entered Factory 10306 | -7/Factory | Accompanied by 3 allies 10306 | -7/Factory | Evolved 2 slots: Propulsion x2 10307 | -7/Factory | Identified exit to Storage 10308 | -7/Factory | Loaded intel: 52 interactive machine locations 10308 | -7/Factory | FarCom data flow suspended 10448 | -7/Factory | Fabricated Gatling Laser (x2) 10632 | -7/Factory | Discovered new exit (range 8) 10815 | -7/Factory | Build established: Scavenger-Tank 10830 | -7/Factory | Discovered new exit (range 15) 11052 | -7/Factory | Identified exit to Lower Caves 11344 | -7/Factory | Build established: Scavenger-Gunner 11357 | -7/Factory | P-60 Hacker assimilated allied Marksman 3c 11422 | -7/Factory | Entered Lower Caves 11423 | -7/Lower Caves | Identified exit to Lower Caves 12284 | -7/Lower Caves | Attracted the attention of an 0b10 outpost 12365 | -7/Lower Caves | Destroyed 9 combat bots 12662 | -7/Lower Caves | Encountered a Warlord checkpoint 13891 | -7/Lower Caves | Attracted the attention of an 0b10 checkpoint 14357 | -7/Lower Caves | Entered another Lower Caves area 14425 | -7/Lower Caves | Discovered new exit (range 5) 14653 | -7/Lower Caves | Encountered a Warlord checkpoint 14779 | -7/Lower Caves | Learned Factory interactive machine intel 15305 | -7/Lower Caves | Discovered new exit (range 12) 16779 | -7/Lower Caves | Build established: Scavenger-Bomber 17558 | -7/Lower Caves | Entered Data Miner 17558 | -7/Data Miner | Discovered new exit (range 6) 17605 | -7/Data Miner | Met Data Miner 17654 | -7/Data Miner | Learned location of Section 7 (-2) 17654 | -7/Data Miner | Acquired the access code to Warlord's prototype stash 17704 | -7/Data Miner | Received God Mode back door access code from Data Miner 17726 | -7/Data Miner | Destroyed Data Miner 17733 | -7/Data Miner | Found Prototype Hackware 17734 | -7/Data Miner | Interfaced with the Data Conduit 17837 | -7/Data Miner | Lost 4 parts (2u2w) 18012 | -7/Data Miner | Entered Proximity Caves 18687 | -6/Proximity Caves | Identified exit to Factory 19561 | -6/Proximity Caves | Acquired the password to a Derelict Tinkerer's latest research 19581 | -6/Proximity Caves | Found Prototype Special Weapon 19797 | -6/Proximity Caves | Caught by Unaware searching for contraband prototypes 20520 | -6/Proximity Caves | Entered Factory 20520 | -6/Factory | Evolved 2 slots: Power x1, Weapon x1 20521 | -6/Factory | Loaded intel: 298 machine locations 20522 | -6/Factory | Loaded intel: 54 interactive machine locations 20779 | -6/Factory | Garrison activated, responded to threat 20873 | -6/Factory | Identified exit to Garrison 20885 | -6/Factory | Entered Garrison 20886 | -6/Garrison | Loaded intel: 33 machine locations 20919 | -6/Garrison | Triggered checkpoint 21094 | -6/Garrison | Spotted B-75 Beast 21119 | -6/Garrison | Destroyed B-75 Beast 21146 | -6/Garrison | Lost 3 parts (3n) 21232 | -6/Garrison | Spotted B-75 Beast 21283 | -6/Garrison | Destroyed B-75 Beast 21334 | -6/Garrison | Lost 11 parts (1p4n2u4w) 21337 | -6/Garrison | Destroyed 8 combat bots 21483 | -6/Garrison | Triggered checkpoint 21584 | -6/Garrison | Discovered new exit (range 14) 21595 | -6/Garrison | Triggered checkpoint 21632 | -6/Garrison | Garrison Relay disabled 21677 | -6/Garrison | Expanded RIF knowledge: Structural Interface 21855 | -6/Garrison | Entered Factory 21855 | -5/Factory | Evolved 2 slots: Utility x2 21856 | -5/Factory | Identified exit to Extension 21857 | -5/Factory | Loaded intel: 259 machine locations 21995 | -5/Factory | Identified System Mapper 22842 | -5/Factory | Intercept squad dispatched 22856 | -5/Factory | Spotted Tracker 22866 | -5/Factory | Destroyed Tracker 22879 | -5/Factory | Spotted Combat Programmer 22886 | -5/Factory | Destroyed Combat Programmer 22919 | -5/Factory | Found Exp. Targeting Computer 22975 | -5/Factory | Entered Extension 22976 | -5/Extension | Identified exit to Factory 22977 | -5/Extension | Loaded intel: 31 machine locations 23374 | -5/Extension | Rescued a captive Derelict 23374 | -5/Extension | Rescued a captive Derelict 23636 | -5/Extension | Rescued A7 23800 | -5/Extension | Disrupted transfer network 23860 | -5/Extension | Spotted B-75 Beast 23861 | -5/Extension | Destroyed B-75 Beast 23878 | -5/Extension | Spotted B-75 Beast 23891 | -5/Extension | Destroyed B-75 Beast 23948 | -5/Extension | Lost 3 parts (1p1u1w) 23993 | -5/Extension | Rescued a captive Derelict 24174 | -5/Extension | Rescued a captive Derelict 24339 | -5/Extension | Rescued a captive Derelict 24340 | -5/Extension | Rescued a captive Derelict 24394 | -5/Extension | Discovered exit to Factory (range 10) 24397 | -5/Extension | Discovered new exit (range 6) 24440 | -5/Extension | Entered Cetus 24440 | -5/Cetus | Accompanied by 14 allies (A7) 24441 | -5/Cetus | Loaded intel: 24 machine locations 24445 | -5/Cetus | Acquired a Cetus Manufacturing Module code from A7 24457 | -5/Cetus | Spotted Cetus Guard 24458 | -5/Cetus | Spotted Cetus Guard 24458 | -5/Cetus | Destroyed Cetus Guard 24461 | -5/Cetus | Spotted Cetus Guard 24462 | -5/Cetus | Destroyed Cetus Guard 24465 | -5/Cetus | Spotted Cetus Guard 24467 | -5/Cetus | Destroyed Cetus Guard 24470 | -5/Cetus | Allies destroyed Cetus Guard 24551 | -5/Cetus | Started Cetus Manufacturing Module 24560 | -5/Cetus | Escorted A7 to Cetus Mainframe 24576 | -5/Cetus | Manufactured an Enhanced Grunt 24601 | -5/Cetus | Manufactured an Enhanced Grunt 24614 | -5/Cetus | Discovered new exit (range 16) 24626 | -5/Cetus | Manufactured an Enhanced Grunt 24637 | -5/Cetus | Spotted Cetus Guard 24637 | -5/Cetus | Spotted Cetus Guard 24642 | -5/Cetus | Spotted Cetus Guard 24645 | -5/Cetus | Destroyed Cetus Guard 24651 | -5/Cetus | Manufactured an Enhanced Grunt 24652 | -5/Cetus | Destroyed Cetus Guard 24653 | -5/Cetus | Allies destroyed Cetus Guard 24654 | -5/Cetus | Spotted Cetus Guard 24667 | -5/Cetus | Discovered exit to Factory (range 16) 24668 | -5/Cetus | Allies destroyed Cetus Guard 24676 | -5/Cetus | Manufactured an Enhanced Grunt 24676 | -5/Cetus | Met Revision 17 24709 | -5/Cetus | System corruption reached 10% 24806 | -5/Cetus | Entered Archives 24806 | -5/Archives | Accompanied by 15 allies (A7) 24807 | -5/Archives | Loaded intel: 8 machine locations 24811 | -5/Archives | Received a hacking code to weaken MAIN.C 24863 | -5/Archives | Discovered exit to Factory (range 15) 24950 | -5/Archives | Discovered new exit (range 13) 24977 | -5/Archives | Build established: Scavenger-Tank 25050 | -5/Archives | Discovered new exit (range 15) 25449 | -5/Archives | Build established: Commander-Tank 25749 | -5/Archives | Entered Hub_04(d) 25749 | -5/Hub_04(d) | Accompanied by 17 allies 25750 | -5/Hub_04(d) | Loaded intel: 79 machine locations 25973 | -5/Hub_04(d) | P-70 Sage assimilated allied Director 6b 26043 | -5/Hub_04(d) | Identified exit to Garrison 26049 | -5/Hub_04(d) | First assault squad dispatched 26120 | -5/Hub_04(d) | Garrison activated, responded to threat 26122 | -5/Hub_04(d) | Network Hub disabled 26122 | -5/Hub_04(d) | Spotted Lightning 26122 | -5/Hub_04(d) | Spotted Lightning 26122 | -5/Hub_04(d) | Spotted Lightning 26158 | -5/Hub_04(d) | Lost 11 allies 26160 | -5/Hub_04(d) | Destroyed Lightning 26167 | -5/Hub_04(d) | Destroyed Lightning 26170 | -5/Hub_04(d) | Destroyed Lightning 26221 | -5/Hub_04(d) | Found Prototype Energy Cannon 26224 | -5/Hub_04(d) | Found Prototype Device 26225 | -5/Hub_04(d) | Identified Exp. EM Shield 26227 | -5/Hub_04(d) | Destroyed 10 combat bots 26229 | -5/Hub_04(d) | Found Exp. Phase Shifter 26237 | -5/Hub_04(d) | Network Hub disabled 26242 | -5/Hub_04(d) | Network Hub disabled 26254 | -5/Hub_04(d) | Found Exp. Phase Shifter 26258 | -5/Hub_04(d) | Found Exp. Phase Shifter 26261 | -5/Hub_04(d) | Found Prototype Energy Cannon 26261 | -5/Hub_04(d) | Identified EMDS (x2) 26378 | -5/Hub_04(d) | Network Hub disabled 26415 | -5/Hub_04(d) | Entered Factory 26415 | -4/Factory | Evolved 2 slots: Power x1, Utility x1 26416 | -4/Factory | Loaded intel: 285 machine locations 26518 | -4/Factory | Build established: Scavenger-Tank 26584 | -4/Factory | Identified exit to Garrison 27285 | -4/Factory | Discovered new exit (range 63) 27565 | -4/Factory | Destroyed 9 combat bots 27646 | -4/Factory | Destroyed 9 combat bots 27665 | -4/Factory | First assault squad dispatched 27685 | -4/Factory | Identified exit to Garrison 27696 | -4/Factory | Intercept squad dispatched 27715 | -4/Factory | Spotted Tracker 27715 | -4/Factory | Garrison activated, responded to threat 27728 | -4/Factory | Spotted Combat Programmer 27742 | -4/Factory | Destroyed Tracker 27774 | -4/Factory | Destroyed Combat Programmer 27785 | -4/Factory | Core integrity fell below 50% 27787 | -4/Factory | Core integrity fell below 20% 27788 | -4/Factory | Destroyed by G-67 Veteran with Plasma Rifle Last Messages --------------- 27782_ K-01 Serf collects debris. 27782_ Dropped EMDS. 27783_ Supersonic Drone Bay destroyed. 27783_ M-13 Machinist repairs K-01 Serf Med. Matter Pod. 27783_ Critical hit (Burn: +50). 27783_ K-01 Serf collects debris. 27783_ Slammed into L-61 Swordsman. 27783_ Destabilizing: System interference. 27783_ Core Analyzer temporarily disabled. 27784_ Slammed into L-61 Swordsman. 27784_ Destabilizing: Core damaged (-23). 27785_ K-01 Serf collects debris. 27785_ Acquired System Mapper. 27787_ Slammed into L-61 Swordsman. 27787_ Core Analyzer destroyed. 27787_ K-01 Serf collects debris. 27788_ Acquired Linked Autogun. 27788_ System Mapper destroyed. 27788_ System corrupted by crushing effect (+3). Map ----- +----------------------------------------------------+ | + ## """ #??????????????????????????? | | # ## """ #??????????????????????????? | | ### ## #??????????????????????????? | | !=! ## #??????????????????????????? | | *=[=! ## #??????????????????????????? | | !% """ ## ! #??????????????????????????? | | =%== ""F"" ## !! #??????????????????????????? | | %[[ *"" " ## != #?????????????"""""????????? | | #//%!!%![ ## #?????????????"""""????????? | | #/ = [%=% ##########?????????????"""??????????? | | # = * #???????????????????????????????????? | | # *= ! =#??????????????????????"""""????????? | | # %=* ! =%*= #??????????????????????"""""????????? | | # ! ===% [#??????????????????????"""??????????? | | # ! ![[[#???????????????????????????????????? | | # === !==#?????????????###??????"""""????????? | | # ==%=!%[%##############T ######?"""""????????? | | # === = =%[ k #?"""??????????? | | # %=%= t #??????????????? | | # !=% = #?"""""????????? | | # *!%!= h u [ # """""????????? | | # |%= =%* [ i ; ?????????? | | #########+############i;g;;;; ; ???????????? | | ??????#=!| = ## # hg*!! ; ####???????????? | | ??????#![[*" " # ; [=glg %| % g ????????? | | ??????#=%! """ ###; [!] @[ % ????????? | | ??????#!=! F" #?#; ]]|bl% ; g % ????????? | | ??????#!!!= "" ## ; ]!g =g; """""""""???????? | | ??????#%""" ###; k ;k """""""""???????? | | ??????#!""" ## ; ; """""""""???????? | | ??????#!""" ###; !;% """""""""???????? | | ??????#!= #?######### ;# g % """"""""???????? | | ??????##?#######?## " +% m """"""""???????? | | ?????????????????## """"""" # % ?????????????? | | ??????????????????# """"""" # ????????????? | | ??????????????????# """"""" #? ????????????? | | ??????????????????# ??????? #??######????????????? | | ??????????????????????????? #????????????????????? | | ??????????????????????????? #????????????????????? | | ????????????????????????????#????????????????????? | | ?????????????????????????????????????????????????? | | ?????????????????????????????????????????????????? | | ??????????????"""????????"""?????????????????????? | | ??????????????"""????????"""?????????????????????? | | ??????????????"""????????"""?????????????????????? | | ?????????????????????????????????????????????????? | | ?????????????????????????????????????????????????? | | ""???????????????????????????????????????????????? | | ""???????????????????????????????????????????????? | | ""???????????????????????????????????????????????? | +----------------------------------------------------+ Best States ------------- Heat Dissipation 121 Coolant Potential 80 Energy Generation 56 Energy Capacity 790 Matter Stores 300 Matter Capacity 300 Sight Range 20 Robot Scan Range 20 Terrain Scan Density 10 Jamming Range 14 Armor Coverage 900 Resistance: EM 75 Phase Shifting 20 Evasion (%) 60 Targeting Accuracy 12 Core Analysis 6 Recoil Reduction 4 Particle Charging 15 Kinecelleration 30 Offensive Hacking 20 Relay Coupler Types 1 Relay Coupler Value 7 Item Schematics ----------------- Huge Storage Unit | -10/Materials | Hacked Hcp. Storage Unit | -10/Mines | Hacked Arm. Treads | -8/Materials | Scanalyzed Combat Drone Bay | -7/Data Miner | Free Lgt. Regenerative Plating | -7/Data Miner | Free Cld. Cesium-ion Thruster | -7/Data Miner | Free Gravity Neutralizer | -7/Data Miner | Free Force Rifle | -7/Data Miner | Free Gyrokinetic Inverter | -7/Data Miner | Free Imp. Coolant Injector | -7/Data Miner | Free Imp. Plasma Cutter | -7/Data Miner | Free Imp. Weapon Shielding | -5/Extension | Hacked Robot Schematics ------------------ M-13 Machinist | -10/Mines | Hacked O-24 Administrator | -7/Data Miner | Free S-27 Virus | -7/Data Miner | Free M-22 Extractor | -7/Data Miner | Free A-15 Conveyor | -7/Data Miner | Free L-41 Fighter | -7/Data Miner | Free R-10 Processor | -7/Data Miner | Free E-15 Imp | -7/Data Miner | Free R-06 Scavenger | -5/Extension | Hacked Fabricated ------------ Gatling Laser | x2 | -7/Factory | Preloaded Repaired ---------- Nothing Alien Tech Used ----------------- None Achievements -------------- None Challenges ------------ None Game ------ Seed NanofilamentsAmuletTether Manual? 0 Play Time 03:19:06 Cumulative 717.2 hours Start 2025.06.08 @ 06:44:12 End 2025.06.08 @ 10:08:56 Sessions 1 Manual Loads 0 Difficulty Rogue Special Mode None Game No. 162 Rogue 162 Adventurer 0 Explorer 0 Win Type - Total 43 Types 12/6/9/2/1/1/8/2/1/1 Lore% 71 Gallery% 85 Achievement% 82 Wizard Run 0 Options --------- Layout 1 ASCII 0 Keyboard 0 Movement Mouse Keybinds 0 Fullscreen 2 Font 24/Smallcaps Map View 25x17 Zoom Use 6% Tactical HUD 1 Map Filters NONE Filters NONE Steam 1 RUN: b2f0909e-373e-4cb2-be3c-96bbd3bf89bb